Workbook

Sheet SM-sarja
B1: Rauno Vataja | E1: 10.5.1962
B2: MESTARUUSSARJA | E2: Runkosarja | I2: Kärkilyönnit (KL), pesänvälit | P2: Runkosarja TOP-30 | U2: Alempi loppusarja | AB2: Ylempi loppusarja TOP-10 | AG2: Play off, voitot, voittoprosentti | AL2: Arvo-ottelut | AO2: Mitalit
B3: Vuosi | C3: Sija | D3: Seura | E3: OTT | F3: KUN | G3: LÖI | H3: TOI | I3: KL | J3: 0 > 1 | K3: 1 > 2 | L3: 2 > 3 | M3: 3 > k | N3: KL-% | P3: LÖI | Q3: TOI | R3: L+T | S3: KL | U3: OTT | V3: KUN | W3: LÖI | X3: TOI | Y3: KL | Z3: KL-% | AB3: LÖI | AC3: TOI | AD3: L+T | AE3: KL | AG3: Puolivälierät | AH3: Välierät | AI3: Pronssi | AJ3: Finaalit | AL3: IL | AM3: LL | AN3: Cup | AO3: K | AP3: H | AQ3: P
B4: 1980 | C4: 4. | D4: KaMa | E4: 16 | F4: 4 | G4: 18 | H4: 11 | I4: 62 | J4: 12 | K4: 9 | L4: 19 | M4: 22 | N4: 52.5 % | P4: 17. | AB4: 4. | AD4: 10. | AG4: Mitalisarja 4.
B5: 1981 | C5: 5. | D5: KaMa | E5: 17 | F5: 0 | G5: 8 | H5: 8 | I5: 28 | J5: 8 | K5: 8 | L5: 4 | M5: 8 | N5: 33.7 %
B6: 1982 | C6: 9. | D6: KaMa | E6: 15 | F6: 0 | G6: 12 | H6: 8 | I6: 37 | J6: 9 | K6: 6 | L6: 10 | M6: 12 | N6: 46.3 % | U6: 4 | V6: 0 | W6: 2 | X6: 0 | Y6: 8 | Z6: 57.1 %
B7: 1983 | C7: 11. | D7: KaMa | E7: 17 | F7: 0 | G7: 11 | H7: 4 | I7: 36 | J7: 10 | K7: 10 | L7: 5 | M7: 11 | N7: 35.0 % | U7: 5 | V7: 0 | W7: 0 | X7: 1 | Y7: 7 | Z7: 35.0 %
B8: 1984 | C8: 1. | D8: KaMa | F8: ykkössarja
B9: 1985 | C9: 10. | D9: KaMa | E9: 16 | F9: 0 | G9: 3 | H9: 2 | I9: 30 | J9: 8 | K9: 10 | L9: 9 | M9: 3 | N9: 36.6 % | U9: 2 | V9: 0 | W9: 0 | X9: 0 | Y9: 1 | Z9: 25.0 %
B10: 1986 | C10: 1. | D10: KaMa | F10: ykkössarja | AN10: 1
B11: 1987 | C11: 9. | D11: KaMa | E11: 10 | F11: 0 | G11: 1 | H11: 0 | I11: 5 | J11: 2 | K11: 0 | L11: 2 | M11: 1 | N11: 17.2 % | U11: 6 | V11: 0 | W11: 6 | X11: 4 | Y11: 19 | Z11: 51.4 %
B12: 1988 | C12: 3. | D12: KaMa | E12: 3 | F12: 0 | G12: 0 | H12: 0 | I12: 1 | J12: 0 | K12: 0 | L12: 1 | M12: 0 | N12: 25.0 % | AQ12: 1
B13: Yhteensä | E13: 94 | F13: 4 | G13: 53 | H13: 33 | I13: 199 | J13: 49 | K13: 43 | L13: 50 | M13: 57 | N13: 39.9 % | P13: 0-0-0 | Q13: 0-0-0 | R13: 0-0-0 | S13: 0-0-0 | U13: 17 | V13: 0 | W13: 8 | X13: 5 | Y13: 35 | Z13: 50.0 % | AB13: 0-0-0 | AC13: 0-0-0 | AD13: 0-0-0 | AE13: 0-0-0 | AG13: 0/0 | AH13: 0/0 | AI13: 0/0 | AJ13: 0/0 | AL13: 0 | AM13: 0 | AN13: 1 | AO13: 0 | AP13: 0 | AQ13: 1
AG14: 0.0 % | AH14: 0.0 % | AI14: 0.0 % | AJ14: 0.0 %
B15: Pesispörssi | D15: 183.7
B17: URA SM-SARJASSA | E17: OTT | F17: KUN | G17: LÖI | H17: TOI | I17: KL | K17: ka/L | L17: ka/T | M17: ka/KL | N17: KL-% | P17: ENSIMMÄISET RUNKOSARJASSA | AG17: ENSIMMÄISET PUDOTUSPELEISSÄ | AL17: YLEISÖ
B18: Runkosarja | E18: 94 | F18: 4 | G18: 53 | H18: 33 | I18: 199 | K18: 0.61 | L18: 0.35 | M18: 2.12 | N18: 39.9 % | P18: Ottelu | R18: 04.05. 1980 SiiPo - KaMa 6-2 | Y18: 1. ottelu | AB18: 17 v 11 kk 24 pv | AG18: Ottelu | AH18: 1. 23.08. 1980 Tahko - KaMa 3-7 | AL18: 2997 | AN18: 30 v 8 kk 9 pv
B19: Ylempi loppusarja | E19: 6 | F19: 1 | G19: 6 | H19: 2 | I19: 24 | K19: 1.17 | L19: 0.33 | M19: 4.00 | N19: 50.0 % | P19: Lyöty | R19: 11.05. 1980 KaMa - Lohi 9-5 | Y19: 2. ottelu | AB19: 18 v 0 kk 1 pv | AG19: Lyöty | AH19: 2. 24.08. 1980 KaMa - Tahko 5-10 | AL19: 2060 | AN19: 30 v 8 kk 10 pv
B20: Alempi loppusarja | E20: 17 | F20: 0 | G20: 8 | H20: 5 | I20: 35 | K20: 0.47 | L20: 0.29 | M20: 2.06 | N20: 46.7 % | P20: Tuotu | R20: 11.05. 1980 KaMa - Lohi 9-5 | Y20: 2. ottelu | AB20: 18 v 0 kk 1 pv | AG20: Tuotu | AH20: 2. 24.08. 1980 KaMa - Tahko 5-10 | AL20: 2060 | AN20: 30 v 8 kk 10 pv
B21: KAIKKI | E21: 111 | F21: 5 | G21: 61 | H21: 36 | I21: 239 | K21: 0.59 | L21: 0.32 | M21: 2.15 | N21: 38.4 % | O21: 722 | P21: Kunnari | R21: 25.05. 1980 KaMa - AA 5-12 | Y21: 5. ottelu | AB21: 18 v 0 kk 15 pv | AG21: Kunnari | AH21: 2. 24.08. 1980 KaMa - Tahko 5-10 | AL21: 2060 | AN21: 30 v 8 kk 10 pv
O22: 815
B23: Seurat | D23: KaMa = Kankaanpään Maila (1958)

Sheet MYP
B1: Rauno Vataja | E1: 10.5.1962
B2: YKKÖSPESIS | E2: Runkosarja | L2: Runkosarja TOP-10 | Q2: Jatkosarjat | X2: SUOMENSARJA | AA2: Runkosarja | AH2: Runkosarja TOP-10 | AM2: Jatkosarjat
B3: Vuosi | C3: Sija | D3: Seura | E3: OTT | F3: KUN | G3: LÖI | H3: TOI | I3: KL | J3: KL-% | L3: LÖI | M3: TOI | N3: L+T | O3: KL | Q3: OTT | R3: KUN | S3: LÖI | T3: TOI | U3: KL | V3: KL-% | X3: Vuosi | Y3: Sija | Z3: Seura | AA3: OTT | AB3: KUN | AC3: LÖI | AD3: TOI | AE3: KL | AF3: KL-% | AH3: LÖI | AI3: TOI | AJ3: L+T | AK3: KL | AM3: OTT | AN3: KUN | AO3: LÖI | AP3: TOI | AQ3: KL | AR3: KL-%
B4: 1984 | C4: 1. | D4: KaMa | E4: 10 | F4: 1 | G4: 17 | H4: 4 | L4: 3. | N4: 5. | Q4: 10 | R4: 2 | S4: 16 | T4: 9
B6: 1986 | C6: 1. | D6: KaMa | E6: 18 | F6: 1 | G6: 19 | H6: 4
B7: YHTEENSÄ | E7: =SUM(E4:E6) -> 28 | F7: =SUM(F4:F6) -> 2 | G7: =SUM(G4:G6) -> 36 | H7: =SUM(H4:H6) -> 8 | I7: =SUM(I4:I6) -> 0 | J7: 0.0 % | K7: =SUM(K4:K6) -> 0 | Q7: =SUM(Q4:Q6) -> 10 | R7: =SUM(R4:R6) -> 2 | S7: =SUM(S4:S6) -> 16 | T7: =SUM(T4:T6) -> 9 | U7: =SUM(U4:U6) -> 0 | V7: 0.0 % | W7: =SUM(W4:W6) -> 0 | X7: YHTEENSÄ | AA7: =SUM(AA4:AA6) -> 0 | AB7: =SUM(AB4:AB6) -> 0 | AC7: =SUM(AC4:AC6) -> 0 | AD7: =SUM(AD4:AD6) -> 0 | AE7: =SUM(AE4:AE6) -> 0 | AF7: 0.0 % | AG7: =SUM(AG4:AG6) -> 0 | AM7: =SUM(AM4:AM6) -> 0 | AN7: =SUM(AN4:AN6) -> 0 | AO7: =SUM(AO4:AO6) -> 0 | AP7: =SUM(AP4:AP6) -> 0 | AQ7: =SUM(AQ4:AQ6) -> 0 | AR7: 0.0 % | AS7: =SUM(AS4:AS6) -> 0
B9: KAIKKI OTTELUT | E9: OTT | F9: KUN | G9: LÖI | H9: TOI | I9: KL | J9: KL-% | L9: ka/L | M9: ka/T | N9: ka/l+t | O9: ka/kl | R9: Seurat | T9: KaMa = Kankaanpään Maila (1958)
B10: SUPERPESIS | E10: 111 | F10: 5 | G10: 61 | H10: 36 | I10: 239 | J10: 38.4 % | K10: =PRODUCT(I10/J10) -> 622.3958333 | L10: =PRODUCT((F10+G10)/E10) -> 0.59 | M10: =PRODUCT(H10/E10) -> 0.32 | N10: =PRODUCT((F10+G10+H10)/E10) -> 0.92 | O10: =PRODUCT(I10/E10) -> 2.15
B11: YKKÖSPESIS | E11: =PRODUCT(E7+Q7) -> 38 | F11: =PRODUCT(F7+R7) -> 4 | G11: =PRODUCT(G7+S7) -> 52 | H11: =PRODUCT(H7+T7) -> 17 | I11: =PRODUCT(I7+U7) -> 0 | J11: 0.0 % | K11: =PRODUCT(K7+W7) -> 0 | L11: =PRODUCT((F11+G11)/E11) -> 1.47 | M11: =PRODUCT(H11/E11) -> 0.45 | N11: =PRODUCT((F11+G11+H11)/E11) -> 1.92 | O11: =PRODUCT(I11/E11) -> 0.00
B12: SUOMENSARJA | E12: =PRODUCT(AA7+AM7) -> 0 | F12: =PRODUCT(AB7+AN7) -> 0 | G12: =PRODUCT(AC7+AO7) -> 0 | H12: =PRODUCT(AD7+AP7) -> 0 | I12: =PRODUCT(AE7+AQ7) -> 0 | J12: 0.0 % | K12: =PRODUCT(AG7+AS7) -> 0 | L12: 0.00 | M12: 0.00 | N12: 0.00 | O12: 0.00
B13: YHTEENSÄ | E13: =SUM(E10:E12) -> 149 | F13: =SUM(F10:F12) -> 9 | G13: 113 | H13: 53 | I13: 239 | J13: 0.0 % | K13: =SUM(K10:K12) -> 622.3958333 | L13: =PRODUCT((F13+G13)/E13) -> 0.82 | M13: =PRODUCT(H13/E13) -> 0.36 | N13: =PRODUCT((F13+G13+H13)/E13) -> 1.17 | O13: 2.15

Sheet Arvo-ottelut
B1: ITÄ - LÄNSI - KORTTI
B2: Rauno Vataja | C2: 10.5.1962
B3: B-POJAT | C3: Itä - Länsi, tulos | D3: Joukkue | E3: Seura | G3: V | H3: T | I3: H | J3: Up. | K3: Lj. | L3: Palk. | M3: O | N3: K | O3: L | P3: T | Q3: KL | R3: 1 | S3: 2 | T3: 3 | U3: k | V3: KL-% | W3: Pelinjohtaja | X3: Yleisöä
B4: 07.07. 1979 Lahti | C4: 5-9 | D4: Länsi | E4: KaMa | I4: 1 | J4: 2v | K4: 5 | M4: 1 | W4: Antero Salonen
B6: A-POJAT | C6: Itä - Länsi, tulos | D6: Joukkue | E6: Seura | G6: V | H6: T | I6: H | J6: Up. | K6: Lj. | L6: Palk. | M6: O | N6: K | O6: L | P6: T | Q6: KL | R6: 1 | S6: 2 | T6: 3 | U6: k | V6: KL-% | W6: Pelinjohtaja | X6: Yleisöä
B7: 12.07. 1980 Alajärvi | C7: 5-13 | D7: Länsi | E7: KaMa | G7: 1 | J7: 2v | K7: 4 | L7: II p | M7: 1 | O7: 4 | P7: 2 | W7: Timo Hakala | X7: 350
B8: 25.07. 1981 Lohja | C8: 11-3 | D8: Länsi | E8: KaMa | I8: 1 | J8: 3p | K8: 4 | M8: 1 | Q8: 3/7 | R8: 1/2 | S8: 1/2 | T8: 1/1 | U8: 0/2 | V8: 42.9 % | W8: Kari Isotalo | X8: 371

Sheet Kärkilyönnit
B1: KÄRKILYÖNNIT RUNKOSARJASSA | V1: VUOSITTAISET SIJOITUKSET TOP - 30
G2: 0 > 1 | J2: 1 > 2 | M2: 2 > 3 | P2: 3 > k | S2: Yhteensä
B3: Vuosi | C3: Sija | D3: Seura | E3: OTT | F3: KL | G3: YHT | H3: % | I3: KL | J3: YHT | K3: % | L3: KL | M3: YHT | N3: % | O3: KL | P3: YHT | Q3: % | R3: KL | S3: YHT | T3: % | V3: Vuosi | W3: Sija | X3: Seura | Y3: 0 > 1 | Z3: 1 > 2 | AA3: 2 > 3 | AB3: 3 > k | AC3: KL
B4: 1980 | C4: 4. | D4: KaMa | E4: 16 | F4: 12 | G4: =PRODUCT(F4/H4) -> 28 | H4: 42.3 % | I4: 9 | J4: =PRODUCT(I4/K4) -> 26 | K4: 34.8 % | L4: 19 | M4: =PRODUCT(L4/N4) -> 27 | N4: 71.4 % | O4: 22 | P4: =PRODUCT(O4/Q4) -> 36 | Q4: 61.3 % | R4: 62 | S4: =PRODUCT(G4+J4+M4+P4) -> 117 | T4: 52.5 % | V4: 1980 | W4: 4. | X4: KaMa | AB4: 17.
B5: 1981 | C5: 5. | D5: KaMa | E5: 17 | F5: 8 | G5: 21 | H5: =PRODUCT(F5/G5) -> 38.1 % | I5: 8 | J5: 21 | K5: =PRODUCT(I5/J5) -> 38.1 % | L5: 4 | M5: 18 | N5: =PRODUCT(L5/M5) -> 22.2 % | O5: 8 | P5: 23 | Q5: =PRODUCT(O5/P5) -> 34.8 % | R5: 28 | S5: 83 | T5: =PRODUCT(R5/S5) -> 33.7 % | V5: 1981 | W5: 5. | X5: KaMa
B6: 1982 | C6: 8. | D6: KaMa | E6: 15 | F6: 9 | G6: 18 | H6: =PRODUCT(F6/G6) -> 50.0 % | I6: 6 | J6: 11 | K6: =PRODUCT(I6/J6) -> 54.5 % | L6: 10 | M6: 24 | N6: =PRODUCT(L6/M6) -> 41.7 % | O6: 12 | P6: 27 | Q6: =PRODUCT(O6/P6) -> 44.4 % | R6: 37 | S6: 80 | T6: =PRODUCT(R6/S6) -> 46.3 % | V6: 1982 | W6: 8. | X6: KaMa
B7: 1983 | C7: 11. | D7: KaMa | E7: 17 | F7: 10 | G7: 30 | H7: =PRODUCT(F7/G7) -> 33.3 % | I7: 10 | J7: 19 | K7: =PRODUCT(I7/J7) -> 52.6 % | L7: 5 | M7: 17 | N7: =PRODUCT(L7/M7) -> 29.4 % | O7: 11 | P7: 37 | Q7: =PRODUCT(O7/P7) -> 29.7 % | R7: 36 | S7: 103 | T7: =PRODUCT(R7/S7) -> 35.0 % | V7: 1983 | W7: 11. | X7: KaMa
B8: 1984 | V8: 1984
B9: 1985 | C9: 11. | D9: KaMa | E9: 16 | F9: 8 | G9: 24 | H9: =PRODUCT(F9/G9) -> 33.3 % | I9: 10 | J9: 21 | K9: =PRODUCT(I9/J9) -> 47.6 % | L9: 9 | M9: 24 | N9: =PRODUCT(L9/M9) -> 37.5 % | O9: 3 | P9: 13 | Q9: =PRODUCT(O9/P9) -> 23.1 % | R9: 30 | S9: 82 | T9: 36.6 % | V9: 1985 | W9: 11. | X9: KaMa
B10: 1986 | V10: 1986
B11: 1987 | C11: 9. | D11: KaMa | E11: 10 | F11: 2 | I11: 0 | L11: 2 | O11: 1 | R11: =PRODUCT(F11+I11+L11+O11) -> 5 | S11: 29 | T11: 17.2 % | V11: 1987 | W11: 9. | X11: KaMa
B12: 1988 | C12: 2. | D12: KaMa | E12: 3 | F12: 0 | G12: 0 | H12: 0.0 % | I12: 0 | J12: 2 | K12: =PRODUCT(I12/J12) -> 0.0 % | L12: 1 | M12: 1 | N12: =PRODUCT(L12/M12) -> 100.0 % | O12: 0 | P12: 1 | Q12: =PRODUCT(O12/P12) -> 0.0 % | R12: =PRODUCT(F12+I12+L12+O12) -> 1 | S12: 4 | T12: 25.0 % | V12: 1988 | W12: 2. | X12: KaMa
B13: Yhteensä | E13: =SUM(E4:E12) -> 94 | F13: =SUM(F4:F12)-2 -> 47 | G13: =SUM(G4:G12) -> 121 | H13: =PRODUCT(F13/G13) -> 38.7 % | I13: =SUM(I4:I12) -> 43 | J13: =SUM(J4:J12) -> 99.9 | K13: =PRODUCT(I13/J13) -> 43.1 % | L13: =SUM(L4:L12)-2 -> 48 | M13: =SUM(M4:M12) -> 111 | N13: =PRODUCT(L13/M13) -> 43.4 % | O13: =SUM(O4:O12)-1 -> 56 | P13: =SUM(P4:P12) -> 137 | Q13: =PRODUCT(O13/P13) -> 40.9 % | R13: =SUM(R4:R12) -> 199 | S13: =SUM(S4:S12) -> 498 | T13: 39.9 %
B15: KÄRKILYÖNNIT YLEMMISSÄ PUDOTUSPELEISSÄ | V15: VUOSITTAISET SIJOITUKSET TOP - 30
G16: 0 > 1 | J16: 1 > 2 | M16: 2 > 3 | P16: 3 > k | S16: Yhteensä
B17: Vuosi | C17: Sija | D17: Seura | E17: OTT | F17: KL | G17: YHT | H17: % | I17: KL | J17: YHT | K17: % | L17: KL | M17: YHT | N17: % | O17: KL | P17: YHT | Q17: % | R17: KL | S17: YHT | T17: % | V17: Vuosi | W17: Sija | X17: Seura | Y17: 0 > 1 | Z17: 1 > 2 | AA17: 2 > 3 | AB17: 3 > k | AC17: KL
B18: 1980 | C18: 4. | D18: KaMa | E18: 4 | F18: 6 | G18: 11 | H18: 54.5 % | I18: 6 | J18: 14 | K18: 42.9 % | L18: 5 | M18: 9 | N18: 55.6 % | O18: 7 | P18: 14 | Q18: 50.0 % | R18: 24 | S18: 48 | T18: 50.0 % | V18: 1980 | W18: 4. | X18: KaMa | Y18: 16. | Z18: 17. | AA18: 20. | AB18: 4. | AC18: 18.
B19: 1981 | C19: 5. | D19: KaMa | V19: 1981 | W19: 5. | X19: KaMa
B20: 1982 | C20: 9. | D20: KaMa | V20: 1982 | W20: 9. | X20: KaMa
B21: 1983 | C21: 11. | D21: KaMa | V21: 1983 | W21: 11. | X21: KaMa
B22: 1984 | V22: 1984
B23: 1985 | C23: 10. | D23: KaMa | V23: 1985 | W23: 10. | X23: KaMa
B24: 1986 | V24: 1986
B25: 1987 | C25: 9. | D25: KaMa | V25: 1987 | W25: 9. | X25: KaMa
B26: 1988 | C26: 3. | D26: KaMa | V26: 1988 | W26: 3. | X26: KaMa
B27: Yhteensä | E27: =SUM(E16:E26) -> 4 | F27: =SUM(F18:F26) -> 6 | G27: =SUM(G18:G26) -> 11 | H27: =PRODUCT(F27/G27) -> 54.5 % | I27: =SUM(I18:I26) -> 6 | J27: =SUM(J18:J26) -> 14 | K27: =PRODUCT(I27/J27) -> 42.9 % | L27: =SUM(L18:L26) -> 5 | M27: =SUM(M18:M26) -> 9 | N27: =PRODUCT(L27/M27) -> 55.6 % | O27: =SUM(O18:O26) -> 7 | P27: =SUM(P18:P26) -> 14 | Q27: =PRODUCT(O27/P27) -> 50.0 % | R27: =SUM(R18:R26) -> 24 | S27: =SUM(S18:S26) -> 48 | T27: =PRODUCT(R27/S27) -> 50.0 %
B29: KÄRKILYÖNNIT
G30: 0 > 1 | J30: 1 > 2 | M30: 2 > 3 | P30: 3 > k | S30: Yhteensä
E31: OTT | F31: KL | G31: YHT | H31: % | I31: KL | J31: YHT | K31: % | L31: KL | M31: YHT | N31: % | O31: KL | P31: YHT | Q31: % | R31: KL | S31: YHT | T31: %
B32: RUNKOSARJA | E32: =PRODUCT(E13) -> 94 | F32: =PRODUCT(F13) -> 47 | G32: =PRODUCT(G13) -> 121.3636364 | H32: =PRODUCT(H13) -> 38.7 % | I32: =PRODUCT(I13) -> 43 | J32: =PRODUCT(J13) -> 99.875 | K32: =PRODUCT(K13) -> 43.1 % | L32: =PRODUCT(L13) -> 48 | M32: =PRODUCT(M13) -> 110.6 | N32: =PRODUCT(N13) -> 43.4 % | O32: =PRODUCT(O13) -> 56 | P32: =PRODUCT(P13) -> 136.8947368 | Q32: =PRODUCT(Q13) -> 40.9 % | R32: =PRODUCT(R13) -> 199 | S32: =PRODUCT(S13) -> 497.7333732 | T32: =PRODUCT(T13) -> 39.9 %
B33: PLAY OFF | E33: =PRODUCT(E27) -> 4 | F33: =PRODUCT(F27) -> 6 | G33: 11 | H33: 54.5 % | I33: 6 | J33: 14 | K33: 42.9 % | L33: 5 | M33: 9 | N33: 55.6 % | O33: 7 | P33: 14 | Q33: 50.0 % | R33: 24 | S33: 48 | T33: 50.0 %
